[Event "5th Ordu Open 2019"]
[Site "Ordu"]
[Date "2019.05.01"]
[Round "4.9"]
[White "Karadag, Eflatun Cem"]
[Black "Sakarya, Muammer Boran"]
[Result "1-0"]
[ECO "E69"]
[WhiteElo "1836"]
[BlackElo "1711"]
[Annotator "NA"]
[PlyCount "131"]
[EventDate "2019.04.29"]
[EventType "swiss"]
[EventCountry "TUR"]
[SourceTitle "playchess.com"]
[Source "ChessBase"]
[SourceQuality "1"]
[TimeControl "5400+30"]

1. d4 {[%emt 0:30:30]} Nf6 {[%emt 0:30:30]} 2. Nf3 {[%emt 0:00:00]} g6 {[%emt 0:00:30]} 3. g3 {[%emt 0:00:00]} Bg7 {[%emt 0:00:30]} 4. Bg2 {[%emt 0:00:00]} O-O {[%emt 0:00:00]} 5. O-O {[%emt 0:00:00]} d6 {[%emt 0:00:00]} 6. c4 {[%emt 0:00:30]} c6 {[%emt 0:00:00]} 7. Nc3 {[%emt 0:00:00]} Qa5 {[%emt 0:00:00]} 8. e4 {[%emt 0:00:00]} e5 {[%emt 0:00:00]} 9. h3 {[%emt 0:00:30]} Nbd7 {[%emt 0:04:00]} 10. Re1 {[%emt 0:04:30]} Re8 {[%emt 0:01:30]} 11. Be3 {[%emt 0:03:30]} exd4 {[%emt 0:04:30]} 12. Nxd4 {[%emt 0:00:30]} Ne5 {[%emt 0:02:30]} 13. Bf1 {[%emt 0:01:30]} Be6 {[%emt 0:00:30]} 14. Nxe6 {[%emt 0:01:30]} Rxe6 {[%emt 0:00:30]} 15. Rb1 {[%emt 0:00:30]} c5 {[%emt 0:12:30]} 16. Kg2 {[%emt 0:09:30]} Nc6 {[%emt 0:04:30]} 17. a3 {[%emt 0:04:30]} Nxe4 {[%emt 0:12:30]} 18. Nxe4 {[%emt 0:04:30]} Rxe4 {[%emt 0:00:30]} 19. Qxd6 {[%emt 0:00:30]} Rae8 {[%emt 0:00:30]} 20. Qd3 {[%emt 0:03:30]} R4e6 {[%emt 0:05:14]} 21. Bd2 {[%emt 0:07:30]} Qb6 {[%emt 0:05:38]} 22. Rxe6 {[%emt 0:03:30]} Rxe6 {[%emt 0:00:45]} 23. Be3 {[%emt 0:06:13]} Nd4 {[%emt 0:04:43]} 24. Kg1 {[%emt 0:05:01]} Qd6 {[%emt 0:07:23]} 25. b4 {[%emt 0:01:17]} h5 {[%emt 0:02:15]} 26. bxc5 {[%emt 0:03:18]} Qxc5 {[%emt 0:00:54]} 27. Rxb7 {[%emt 0:01:01]} h4 {[%emt 0:00:24]} 28. Rb5 {[%emt 0:00:44]} Nf3+ {[%emt 0:00:35]} 29. Kh1 {[%emt 0:00:41]} Qe7 {[%emt 0:00:15]} 30. Bg2 {[%emt 0:01:50]} Ne1 {[%emt 0:00:33]} 31. Rb8+ {[%emt 0:01:04]} Kh7 {[%emt 0:00:33]} 32. Qd8 {[%emt 0:00:15]} Qxd8 {[%emt 0:00:56]} 33. Rxd8 {[%emt 0:00:09]} hxg3 {[%emt 0:00:28]} 34. Bd5 {[%emt 0:00:28]} Re7 {[%emt 0:00:03]} 35. Bc5 {[%emt 0:00:27]} Rc7 {[%emt 0:00:39]} 36. Be3 {[%emt 0:01:23]} gxf2 {[%emt 0:01:03]} 37. Bxf2 {[%emt 0:00:00]} Nd3 {[%emt 0:00:01]} 38. Bg3 {[%emt 0:00:00]} Be5 {[%emt 0:00:10]} 39. Bxf7 {[%emt 0:01:58]} Bxg3 {[%emt 0:01:02]} 40. Rxd3 {[%emt 0:00:30]} Rxf7 {[%emt 0:00:00]} 41. Rxg3 {[%emt 0:00:06]} Rc7 {[%emt 0:00:30]} 42. Rc3 {[%emt 0:00:30]} Kg7 {[%emt 0:00:30]} 43. Kg2 {[%emt 0:00:00]} Kf6 {[%emt 0:00:00]} 44. Kf3 {[%emt 0:00:00]} Ke5 {[%emt 0:00:24]} 45. Ke3 {[%emt 0:00:00]} Rh7 {[%emt 0:00:00]} 46. Kd2 {[%emt 0:00:13]} Kd4 {[%emt 0:00:28]} 47. c5 {[%emt 0:05:33]} Rc7 {[%emt 0:00:23]} 48. c6 {[%emt 0:00:14]} Kd5 {[%emt 0:00:30]} 49. Ke3 {[%emt 0:00:00]} Ke5 {[%emt 0:00:48]} 50. h4 {[%emt 0:00:30]} a6 {[%emt 0:01:32]} 51. Rc1 {[%emt 0:01:42]} a5 {[%emt 0:00:39]} 52. Rc3 {[%emt 0:03:00]} a4 {[%emt 0:00:57]} 53. Kf3 {[%emt 0:00:09]} Kf5 {[%emt 0:00:26]} 54. Rc5+ {[%emt 0:00:12]} Ke6 {[%emt 0:00:02]} 55. Ke4 {[%emt 0:00:35]} Kd6 {[%emt 0:00:30]} 56. Kd4 {[%emt 0:00:43]} Rh7 {[%emt 0:00:42]} 57. c7 {[%emt 0:00:49]} Rxc7 {[%emt 0:00:41]} 58. Rxc7 {[%emt 0:00:30]} Kxc7 {[%emt 0:00:30]} 59. Ke5 {[%emt 0:00:00]} Kc6 {[%emt 0:00:00]} 60. Kf6 {[%emt 0:00:16]} Kc5 {[%emt 0:00:21]} 61. Kxg6 {[%emt 0:00:30]} Kc4 {[%emt 0:00:30]} 62. h5 {[%emt 0:00:30]} Kb3 {[%emt 0:00:30]} 63. h6 {[%emt 0:00:00]} Kxa3 {[%emt 0:00:00]} 64. h7 {[%emt 0:00:00]} Ka2 {[%emt 0:00:00]} 65. h8=Q {[%emt 0:00:00]} a3 {[%emt 0:00:00]} 66. Qc3 {[%emt 0:00:00]} 1-0

[Event "5th Ordu Open 2019"]
[Site "Ordu"]
[Date "2019.05.01"]
[Round "4.10"]
[White "Demirbas, Fatih"]
[Black "Ozveren, Ali Bulent"]
[Result "0-1"]
[ECO "C08"]
[WhiteElo "1726"]
[BlackElo "1930"]
[Annotator "NA"]
[PlyCount "70"]
[EventDate "2019.04.29"]
[EventType "swiss"]
[EventCountry "TUR"]
[SourceTitle "playchess.com"]
[Source "ChessBase"]
[SourceQuality "1"]
[TimeControl "5400+30"]

1. e4 {[%emt 0:30:30]} e6 {[%emt 0:30:30]} 2. d4 {[%emt 0:00:30]} d5 {[%emt 0:00:00]} 3. Nd2 {[%emt 0:00:00]} c5 {[%emt 0:00:00]} 4. exd5 {[%emt 0:01:00]} exd5 {[%emt 0:00:30]} 5. dxc5 {[%emt 0:00:30]} Bxc5 {[%emt 0:00:30]} 6. Ngf3 {[%emt 0:00:30]} Nf6 {[%emt 0:02:30]} 7. Bb5+ {[%emt 0:01:30]} Bd7 {[%emt 0:00:30]} 8. Qe2+ {[%emt 0:02:30]} Qe7 {[%emt 0:03:30]} 9. O-O {[%emt 0:03:30]} O-O {[%emt 0:02:30]} 10. Nb3 {[%emt 0:11:30]} Qxe2 {[%emt 0:07:30]} 11. Bxe2 {[%emt 0:01:30]} Bb6 {[%emt 0:00:00]} 12. Bf4 {[%emt 0:03:30]} Nc6 {[%emt 0:04:00]} 13. Rad1 {[%emt 0:02:30]} Rfe8 {[%emt 0:05:30]} 14. Rfe1 {[%emt 0:04:30]} Ne4 {[%emt 0:00:30]} 15. Bg3 {[%emt 0:05:30]} Nxg3 {[%emt 0:11:30]} 16. hxg3 {[%emt 0:01:30]} Be6 {[%emt 0:01:30]} 17. c3 {[%emt 0:03:30]} Rad8 {[%emt 0:04:30]} 18. Nfd4 {[%emt 0:00:30]} Ne5 {[%emt 0:01:30]} 19. Bb5 {[%emt 0:07:16]} Bd7 {[%emt 0:00:30]} 20. Bxd7 {[%emt 0:01:04]} Nxd7 {[%emt 0:00:30]} 21. a4 {[%emt 0:05:48]} a6 {[%emt 0:01:30]} 22. Rxe8+ {[%emt 0:06:14]} Rxe8 {[%emt 0:00:00]} 23. Kf1 {[%emt 0:00:01]} g6 {[%emt 0:02:00]} 24. Nc2 {[%emt 0:01:18]} Nf6 {[%emt 0:00:37]} 25. Nb4 {[%emt 0:01:25]} Re5 {[%emt 0:00:26]} 26. Nd3 {[%emt 0:02:22]} Rf5 {[%emt 0:03:26]} 27. Nd4 {[%emt 0:01:44]} Bxd4 {[%emt 0:04:24]} 28. cxd4 {[%emt 0:00:30]} Ne4 {[%emt 0:00:03]} 29. Ke2 {[%emt 0:01:03]} Rf6 {[%emt 0:04:25]} 30. a5 {[%emt 0:00:11]} Re6 {[%emt 0:02:41]} 31. Kf3 {[%emt 0:00:51]} h5 {[%emt 0:01:26]} 32. Rc1 {[%emt 0:00:32]} Nd2+ {[%emt 0:00:25]} 33. Kf4 {[%emt 0:00:26]} Re4+ {[%emt 0:02:30]} 34. Kg5 {[%emt 0:00:07]} Kg7 {[%emt 0:00:09]} 35. Rc7 {[%emt 0:01:00]} Rg4# {[%emt 0:00:10]} 0-1

[Event "5th Ordu Open 2019"]
[Site "Ordu"]
[Date "2019.05.01"]
[Round "4.11"]
[White "Aysoy, Veysi"]
[Black "Lomaia, Diana"]
[Result "1-0"]
[ECO "B20"]
[WhiteElo "1920"]
[BlackElo "1780"]
[Annotator "NA"]
[PlyCount "99"]
[EventDate "2019.04.29"]
[EventType "swiss"]
[EventCountry "TUR"]
[SourceTitle "playchess.com"]
[Source "ChessBase"]
[SourceQuality "1"]
[TimeControl "5400+30"]

1. e4 {[%emt 0:30:30]} c5 {[%emt 0:30:30]} 2. a3 {[%emt 0:00:30]} d6 {[%emt 0:00:30]} 3. Nc3 {[%emt 0:00:30]} Nc6 {[%emt 0:00:30]} 4. Nge2 {[%emt 0:00:30]} g6 {[%emt 0:00:30]} 5. d4 {[%emt 0:01:30]} cxd4 {[%emt 0:00:30]} 6. Nxd4 {[%emt 0:00:30]} Bg7 {[%emt 0:00:30]} 7. Be3 {[%emt 0:00:30]} Nf6 {[%emt 0:01:30]} 8. Be2 {[%emt 0:02:30]} O-O {[%emt 0:02:30]} 9. g4 {[%emt 0:04:30]} Nxd4 {[%emt 0:15:30]} 10. Bxd4 {[%emt 0:02:30]} Be6 {[%emt 0:00:30]} 11. g5 {[%emt 0:02:30]} Ne8 {[%emt 0:02:30]} 12. h4 {[%emt 0:01:30]} Bxd4 {[%emt 0:07:30]} 13. Qxd4 {[%emt 0:00:30]} Qb6 {[%emt 0:00:30]} 14. O-O-O {[%emt 0:06:30]} Qxd4 {[%emt 0:02:30]} 15. Rxd4 {[%emt 0:00:00]} Rc8 {[%emt 0:01:30]} 16. f4 {[%emt 0:03:00]} f5 {[%emt 0:08:30]} 17. h5 {[%emt 0:02:30]} Ng7 {[%emt 0:03:20]} 18. h6 {[%emt 0:05:30]} Ne8 {[%emt 0:00:41]} 19. exf5 {[%emt 0:00:30]} Bxf5 {[%emt 0:01:13]} 20. Re1 {[%emt 0:06:30]} e6 {[%emt 0:04:14]} 21. Bb5 {[%emt 0:07:30]} Nc7 {[%emt 0:07:51]} 22. Bd7 {[%emt 0:06:02]} Rcd8 {[%emt 0:00:18]} 23. Rxd6 {[%emt 0:03:42]} Rf7 {[%emt 0:00:32]} 24. Red1 {[%emt 0:00:53]} Kf8 {[%emt 0:05:19]} 25. Ba4 {[%emt 0:01:22]} Rxd6 {[%emt 0:00:37]} 26. Rxd6 {[%emt 0:00:08]} Kg8 {[%emt 0:02:01]} 27. Kd2 {[%emt 0:04:28]} a6 {[%emt 0:00:06]} 28. Ke3 {[%emt 0:00:57]} b5 {[%emt 0:00:27]} 29. Bb3 {[%emt 0:00:56]} Kf8 {[%emt 0:00:28]} 30. Ne4 {[%emt 0:01:59]} Bxe4 {[%emt 0:00:36]} 31. Kxe4 {[%emt 0:00:33]} Ke7 {[%emt 0:00:16]} 32. Rb6 {[%emt 0:00:51]} Kd7 {[%emt 0:00:37]} 33. Rb8 {[%emt 0:00:55]} Ke7 {[%emt 0:01:06]} 34. a4 {[%emt 0:02:18]} Kd7 {[%emt 0:00:35]} 35. Rg8 {[%emt 0:00:18]} Re7 {[%emt 0:00:33]} 36. Ke5 {[%emt 0:00:40]} Rf7 {[%emt 0:00:36]} 37. Rg7 {[%emt 0:00:20]} Re7 {[%emt 0:00:02]} 38. c3 {[%emt 0:00:27]} Kd8 {[%emt 0:00:51]} 39. Bc2 {[%emt 0:00:50]} Nd5 {[%emt 0:00:34]} 40. axb5 {[%emt 0:01:09]} axb5 {[%emt 0:00:05]} 41. Be4 {[%emt 0:00:19]} Nb6 {[%emt 0:00:50]} 42. Rxe7 {[%emt 0:01:11]} Kxe7 {[%emt 0:00:04]} 43. Bxg6 {[%emt 0:00:00]} Nd7+ {[%emt 0:00:38]} 44. Kd4 {[%emt 0:00:27]} Nf8 {[%emt 0:00:14]} 45. Bxh7 {[%emt 0:01:01]} Nxh7 {[%emt 0:00:29]} 46. g6 {[%emt 0:00:00]} Nf8 {[%emt 0:00:52]} 47. g7 {[%emt 0:00:29]} e5+ {[%emt 0:00:26]} 48. fxe5 {[%emt 0:00:09]} Ne6+ {[%emt 0:00:09]} 49. Kd5 {[%emt 0:00:22]} Nf4+ {[%emt 0:00:42]} 50. Ke4 {[%emt 0:00:27]} 1-0

[Event "5th Ordu Open 2019"]
[Site "Ordu"]
[Date "2019.05.01"]
[Round "4.13"]
[White "Sulak, Yusuf"]
[Black "Tamer, Kayra"]
[Result "1/2-1/2"]
[ECO "E90"]
[WhiteElo "1555"]
[BlackElo "1394"]
[Annotator "NA"]
[PlyCount "53"]
[EventDate "2019.04.29"]
[EventType "swiss"]
[EventCountry "TUR"]
[SourceTitle "playchess.com"]
[Source "ChessBase"]
[SourceQuality "1"]
[TimeControl "5400+30"]

1. c4 {[%emt 0:30:30]} Nf6 {[%emt 0:30:30]} 2. d4 {[%emt 0:00:30]} g6 {[%emt 0:00:30]} 3. Nc3 {[%emt 0:00:30]} Bg7 {[%emt 0:00:30]} 4. e4 {[%emt 0:00:30]} d6 {[%emt 0:01:30]} 5. Nf3 {[%emt 0:01:30]} c6 {[%emt 0:00:30]} 6. Bf4 {[%emt 0:01:30]} Nbd7 {[%emt 0:02:30]} 7. Bd3 {[%emt 0:00:30]} O-O {[%emt 0:00:30]} 8. Qd2 {[%emt 0:00:30]} Re8 {[%emt 0:00:30]} 9. d5 {[%emt 0:08:30]} cxd5 {[%emt 0:03:30]} 10. cxd5 {[%emt 0:03:30]} Nc5 {[%emt 0:00:00]} 11. O-O {[%emt 0:00:30]} Bg4 {[%emt 0:01:00]} 12. Qe3 {[%emt 0:08:30]} Qb6 {[%emt 0:01:30]} 13. Rab1 {[%emt 0:08:30]} Rac8 {[%emt 0:04:30]} 14. Bb5 {[%emt 0:05:30]} Red8 {[%emt 0:01:30]} 15. Bd3 {[%emt 0:06:57]} Bxf3 {[%emt 0:00:30]} 16. gxf3 {[%emt 0:01:02]} Nxd3 {[%emt 0:08:30]} 17. Qxd3 {[%emt 0:00:25]} a6 {[%emt 0:00:00]} 18. Be3 {[%emt 0:01:25]} Qb4 {[%emt 0:01:00]} 19. Rfc1 {[%emt 0:03:52]} Nd7 {[%emt 0:01:30]} 20. a3 {[%emt 0:02:33]} Qb3 {[%emt 0:00:30]} 21. Qd1 {[%emt 0:03:01]} Qxd1+ {[%emt 0:01:30]} 22. Nxd1 {[%emt 0:01:13]} Ne5 {[%emt 0:01:30]} 23. Kg2 {[%emt 0:02:50]} Nd3 {[%emt 0:00:30]} 24. Rxc8 {[%emt 0:00:33]} Rxc8 {[%emt 0:00:30]} 25. b4 {[%emt 0:01:18]} b5 {[%emt 0:01:30]} 26. Rb3 {[%emt 0:02:55]} Ne5 {[%emt 0:01:30]} 27. Bd4 {[%emt 0:00:37]} 1/2-1/2

[Event "5th Ordu Open 2019"]
[Site "Ordu"]
[Date "2019.05.01"]
[Round "4.14"]
[White "Erdogan, Celalettin"]
[Black "Kvikvinia, Teimuraz"]
[Result "0-1"]
[ECO "E33"]
[WhiteElo "1344"]
[BlackElo "1592"]
[Annotator "NA"]
[PlyCount "72"]
[EventDate "2019.04.29"]
[EventType "swiss"]
[EventCountry "TUR"]
[SourceTitle "playchess.com"]
[Source "ChessBase"]
[SourceQuality "1"]
[TimeControl "5400+30"]

1. d4 {[%emt 0:30:30]} Nf6 {[%emt 0:30:30]} 2. c4 {[%emt 0:00:30]} e6 {[%emt 0:00:00]} 3. Nc3 {[%emt 0:00:00]} Bb4 {[%emt 0:01:00]} 4. e3 {[%emt 0:01:00]} O-O {[%emt 0:01:30]} 5. Qc2 {[%emt 0:00:30]} d5 {[%emt 0:00:30]} 6. Nf3 {[%emt 0:00:00]} Nc6 {[%emt 0:07:30]} 7. cxd5 {[%emt 0:00:00]} exd5 {[%emt 0:00:30]} 8. Bd3 {[%emt 0:00:30]} h6 {[%emt 0:00:30]} 9. O-O {[%emt 0:00:00]} Re8 {[%emt 0:01:30]} 10. h3 {[%emt 0:02:00]} Be6 {[%emt 0:05:30]} 11. a3 {[%emt 0:00:30]} Bxc3 {[%emt 0:00:30]} 12. bxc3 {[%emt 0:05:30]} Qc8 {[%emt 0:09:30]} 13. Rb1 {[%emt 0:01:30]} Rb8 {[%emt 0:00:30]} 14. Nh2 {[%emt 0:00:30]} Ne7 {[%emt 0:01:30]} 15. f4 {[%emt 0:00:30]} Bf5 {[%emt 0:00:00]} 16. Nf3 {[%emt 0:01:30]} Bxd3 {[%emt 0:02:00]} 17. Qxd3 {[%emt 0:00:30]} Qf5 {[%emt 0:01:30]} 18. Qb5 {[%emt 0:02:30]} c6 {[%emt 0:00:30]} 19. Qb3 {[%emt 0:00:30]} Ne4 {[%emt 0:00:30]} 20. g4 {[%emt 0:04:30]} Qc8 {[%emt 0:02:30]} 21. Rb2 {[%emt 0:02:30]} Qd8 {[%emt 0:05:30]} 22. Rg2 {[%emt 0:00:30]} Qc8 {[%emt 0:10:13]} 23. Kh2 {[%emt 0:01:30]} Ng6 {[%emt 0:03:13]} 24. Bd2 {[%emt 0:09:30]} Nxd2 {[%emt 0:00:59]} 25. Nxd2 {[%emt 0:00:30]} Rxe3 {[%emt 0:00:00]} 26. Rff2 {[%emt 0:05:30]} Qc7 {[%emt 0:00:37]} 27. Nf1 {[%emt 0:00:30]} Re4 {[%emt 0:00:37]} 28. Qc2 {[%emt 0:03:30]} Nxf4 {[%emt 0:00:59]} 29. Rg3 {[%emt 0:00:30]} Rbe8 {[%emt 0:00:00]} 30. Rgf3 {[%emt 0:04:30]} Nd3+ {[%emt 0:00:00]} 31. Ng3 {[%emt 0:01:30]} Nxf2 {[%emt 0:00:04]} 32. Rxf2 {[%emt 0:00:00]} Re3 {[%emt 0:00:54]} 33. Rg2 {[%emt 0:00:00]} Qf4 {[%emt 0:00:49]} 34. a4 {[%emt 0:05:42]} Rf3 {[%emt 0:00:30]} 35. Qd1 {[%emt 0:01:14]} Ree3 {[%emt 0:00:48]} 36. Qg1 {[%emt 0:00:10]} Rxc3 {[%emt 0:00:12]} 0-1

[Event "5th Ordu Open 2019"]
[Site "Ordu"]
[Date "2019.05.02"]
[Round "5.3"]
[White "Dogan, Nazmi Can"]
[Black "Odeev, Handszar"]
[Result "1-0"]
[ECO "B27"]
[WhiteElo "2214"]
[BlackElo "2394"]
[Annotator "RC"]
[PlyCount "50"]
[EventDate "2019.04.29"]
[EventType "swiss"]
[EventCountry "TUR"]
[SourceTitle "playchess.com"]
[Source "ChessBase"]
[SourceQuality "1"]
[TimeControl "5400+30"]

1. Nf3 {[%emt 0:00:30]} g6 {[%emt 0:07:30]} 2. e4 {[%emt 0:05:30]} c5 {[%emt 0:03:30]} 3. d4 {[%emt 0:00:00]} cxd4 {[%emt 0:00:30]} 4. Qxd4 {[%emt 0:04:00]} Nf6 {[%emt 0:00:30]} 5. Nc3 {[%emt 0:00:30]} Nc6 {[%emt 0:00:30]} 6. Qa4 {[%emt 0:00:00]} Ng4 {[%emt 0:08:30]} 7. h3 {[%emt 0:17:00]} Nge5 {[%emt 0:00:30]} 8. Nxe5 {[%emt 0:01:30]} Nxe5 {[%emt 0:00:30]} 9. Be3 {[%emt 0:00:30]} Bg7 {[%emt 0:10:30]} 10. Bd4 {[%emt 0:03:30]} O-O {[%emt 0:05:30]} 11. f4 {[%emt 0:02:30]} Nc6 {[%emt 0:01:30]} 12. Bxg7 {[%emt 0:00:30]} Kxg7 {[%emt 0:00:00]} 13. O-O-O {[%emt 0:01:30]} Qb6 {[%emt 0:19:00]} 14. e5 {[%emt 0:21:30]} d6 {[%emt 0:06:30]} 15. exd6 {[%emt 0:02:30]} exd6 {[%emt 0:00:30]} 16. Rxd6 {[%emt 0:03:30]} Bf5 {[%emt 0:05:30]} 17. Bd3 {[%emt 0:09:30]} Bxd3 {[%emt 0:11:28]} 18. Rxd3 {[%emt 0:00:30]} Rad8 {[%emt 0:00:02]} 19. Nd5 {[%emt 0:01:30]} Qc5 {[%emt 0:07:26]} 20. Rhd1 {[%emt 0:02:30]} Rfe8 {[%emt 0:01:10]} 21. R3d2 {[%emt 0:05:26]} b5 {[%emt 0:01:52]} 22. Qb3 {[%emt 0:00:57]} b4 {[%emt 0:03:00]} 23. Qg3 {[%emt 0:02:48]} f6 {[%emt 0:05:00]} 24. Qh4 {[%emt 0:05:00]} Rd6 {[%emt 0:00:18]} 25. Nc7 {[%emt 0:00:58]} Rxd2 {[%emt 0:01:14]} 1-0

[Event "5th Ordu Open 2019"]
[Site "Ordu"]
[Date "2019.05.02"]
[Round "5.5"]
[White "Olcum, Ahmet"]
[Black "Mosadeghpour, Masoud"]
[Result "0-1"]
[ECO "A48"]
[WhiteElo "2300"]
[BlackElo "2514"]
[Annotator "RC"]
[PlyCount "102"]
[EventDate "2019.04.29"]
[EventType "swiss"]
[EventCountry "TUR"]
[SourceTitle "playchess.com"]
[Source "ChessBase"]
[SourceQuality "1"]
[TimeControl "5400+30"]

1. d4 {[%emt 0:11:30]} Nf6 {[%emt 0:00:30]} 2. Bf4 {[%emt 0:00:00]} b6 {[%emt 0:00:30]} 3. Nf3 {[%emt 0:01:00]} Bb7 {[%emt 0:00:30]} 4. e3 {[%emt 0:00:00]} g6 {[%emt 0:00:30]} 5. Be2 {[%emt 0:00:00]} d6 {[%emt 0:00:30]} 6. h3 {[%emt 0:00:30]} Bg7 {[%emt 0:00:30]} 7. O-O {[%emt 0:00:30]} O-O {[%emt 0:00:30]} 8. Bh2 {[%emt 0:04:30]} Nbd7 {[%emt 0:02:30]} 9. a4 {[%emt 0:02:30]} a5 {[%emt 0:01:30]} 10. c4 {[%emt 0:10:30]} Ne4 {[%emt 0:03:30]} 11. Nfd2 {[%emt 0:01:30]} Nxd2 {[%emt 0:03:30]} 12. Nxd2 {[%emt 0:01:30]} e5 {[%emt 0:00:30]} 13. Bf3 {[%emt 0:02:30]} Bxf3 {[%emt 0:02:30]} 14. Nxf3 {[%emt 0:00:30]} Re8 {[%emt 0:05:30]} 15. Qd2 {[%emt 0:16:30]} Qe7 {[%emt 0:11:30]} 16. Rfd1 {[%emt 0:00:30]} Nb8 {[%emt 0:04:30]} 17. c5 {[%emt 0:10:30]} bxc5 {[%emt 0:03:30]} 18. dxe5 {[%emt 0:00:30]} dxe5 {[%emt 0:00:00]} 19. Rac1 {[%emt 0:03:30]} e4 {[%emt 0:21:00]} 20. Ne1 {[%emt 0:00:30]} Na6 {[%emt 0:00:30]} 21. b3 {[%emt 0:07:30]} Qe6 {[%emt 0:06:30]} 22. Qxa5 {[%emt 0:06:22]} Qxb3 {[%emt 0:00:30]} 23. Bxc7 {[%emt 0:09:54]} Bb2 {[%emt 0:10:30]} 24. Rb1 {[%emt 0:00:30]} Nxc7 {[%emt 0:00:30]} 25. Qxc7 {[%emt 0:00:30]} c4 {[%emt 0:00:30]} 26. a5 {[%emt 0:06:16]} c3 {[%emt 0:00:44]} 27. Qb6 {[%emt 0:00:09]} Qa4 {[%emt 0:02:34]} 28. Rd4 {[%emt 0:00:52]} c2 {[%emt 0:02:13]} 29. Rxb2 {[%emt 0:02:45]} Qxd4 {[%emt 0:00:30]} 30. Nxc2 {[%emt 0:00:04]} Qa4 {[%emt 0:02:25]} 31. Nd4 {[%emt 0:00:48]} Qxa5 {[%emt 0:00:50]} 32. Qb3 {[%emt 0:00:44]} Qc7 {[%emt 0:01:02]} 33. Qd1 {[%emt 0:00:26]} Rec8 {[%emt 0:01:11]} 34. Rc2 {[%emt 0:00:19]} Qd6 {[%emt 0:00:48]} 35. Rxc8+ {[%emt 0:00:30]} Rxc8 {[%emt 0:00:30]} 36. g3 {[%emt 0:00:06]} Qd5 {[%emt 0:00:45]} 37. Kg2 {[%emt 0:00:30]} Ra8 {[%emt 0:01:04]} 38. Qb1 {[%emt 0:00:12]} h5 {[%emt 0:00:31]} 39. h4 {[%emt 0:00:25]} Ra2 {[%emt 0:00:00]} 40. Qb8+ {[%emt 0:00:13]} Kg7 {[%emt 0:02:31]} 41. Qc7 {[%emt 0:00:50]} Kh7 {[%emt 0:03:46]} 42. Qc3 {[%emt 0:01:01]} Qa5 {[%emt 0:01:15]} 43. Qc4 {[%emt 0:00:28]} Kg8 {[%emt 0:00:56]} 44. Qc8+ {[%emt 0:00:53]} Kg7 {[%emt 0:00:35]} 45. Qb8 {[%emt 0:00:36]} Qa6 {[%emt 0:01:17]} 46. Qb1 {[%emt 0:00:31]} Ra1 {[%emt 0:02:54]} 47. Qb5 {[%emt 0:00:03]} Qxb5 {[%emt 0:00:28]} 48. Nxb5 {[%emt 0:00:01]} Kf6 {[%emt 0:00:29]} 49. Nd6 {[%emt 0:00:23]} Ra4 {[%emt 0:00:00]} 50. Kf1 {[%emt 0:00:30]} Rb4 {[%emt 0:00:09]} 51. Kg2 {[%emt 0:01:56]} Ke5 {[%emt 0:00:30]} 0-1

[Event "5th Ordu Open 2019"]
[Site "Ordu"]
[Date "2019.05.02"]
[Round "5.9"]
[White "Gozubuyukoglu, Selami"]
[Black "Ozveren, Ali Bulent"]
[Result "1-0"]
[ECO "C54"]
[WhiteElo "1818"]
[BlackElo "1930"]
[Annotator "NA RC"]
[PlyCount "89"]
[EventDate "2019.04.29"]
[EventType "swiss"]
[EventCountry "TUR"]
[SourceTitle "playchess.com"]
[Source "ChessBase"]
[SourceQuality "1"]
[TimeControl "5400+30"]

1. e4 {[%emt 0:30:30]} e5 {[%emt 0:30:30]} 2. Nf3 {[%emt 0:00:30]} Nc6 {[%emt 0:00:00]} 3. Bc4 {[%emt 0:00:00]} Bc5 {[%emt 0:00:00]} 4. c3 {[%emt 0:00:00]} Nf6 {[%emt 0:00:30]} 5. d3 {[%emt 0:00:00]} d6 {[%emt 0:02:30]} 6. Bb3 {[%emt 0:00:00]} O-O {[%emt 0:01:30]} 7. Qe2 {[%emt 0:01:30] C54: Giuoco Piano: 4 c3 Nf6, main lines with 5 d4 and 5 d3} (7. h3 a6 8. Nbd2 Be6 9. Bc2 d5 10. Qe2 h6 11. g4 Nh7 12. Rg1 d4 13. Nb3 Be7 14. Nxe5 Nxe5 15. Nxd4 c5 16. Nf5 Kh8 {1-0 (35) Duda,J (2678)-Eljanov,P (2741) Germany 2017}) 7... Be6 {[%emt 0:02:30]} 8. Bc2 {[%emt 0:00:30]} Bb6 {[%emt 0:11:30]} 9. Nbd2 {[%emt 0:02:30]} Ne7 $146 {[%emt 0:00:30]} ({Predecessor:} 9... h6 10. h3 Qd7 11. O-O Ne7 12. Rd1 {1-0 (36) Oliva Meneses,J (2057)-Smith,V (1725) Pocos de Caldas 2013}) 10. h3 {[%emt 0:05:30]} Ng6 {[%emt 0:00:30]} 11. g3 {[%emt 0:01:30]} Qc8 {[%emt 0:04:30]} 12. Qf1 {[%emt 0:00:30]} Nh5 {[%emt 0:05:30]} 13. Qg2 {[%emt 0:02:30]} c6 {[%emt 0:05:30]} 14. Nf1 {[%emt 0:03:30]} h6 {[%emt 0:03:30]} 15. Be3 {[%emt 0:04:30]} f5 {[%emt 0:08:30]} 16. Bxb6 {[%emt 0:14:30]} axb6 {[%emt 0:00:00]} 17. exf5 {[%emt 0:00:30]} Bxf5 {[%emt 0:01:00]} 18. Ne3 {[%emt 0:00:30]} Be6 {[%emt 0:01:57]} 19. d4 {[%emt 0:01:30]} Ne7 {[%emt 0:04:45]} 20. dxe5 {[%emt 0:00:30]} dxe5 {[%emt 0:01:21]} 21. Nxe5 {[%emt 0:01:30]} Nf6 {[%emt 0:03:41]} 22. a3 {[%emt 0:05:30]} Ned5 {[%emt 0:00:24]} 23. O-O-O {[%emt 0:07:24]} Nxe3 {[%emt 0:10:13]} 24. fxe3 {[%emt 0:00:30]} Bd5 {[%emt 0:00:30]} 25. e4 {[%emt 0:00:30]} Be6 {[%emt 0:00:30]} 26. g4 {[%emt 0:00:30]} Qc7 {[%emt 0:00:30]} 27. Ng6 {[%emt 0:00:30]} Rf7 {[%emt 0:00:30]} 28. Rhf1 {[%emt 0:00:30]} Nd7 {[%emt 0:00:30]} 29. Nh4 {[%emt 0:00:30]} Ne5 {[%emt 0:00:30]} 30. Rxf7 {[%emt 0:00:30]} Bxf7 {[%emt 0:00:30]} 31. Qd2 {[%emt 0:00:30]} Nc4 {[%emt 0:00:30]} 32. Qf2 {[%emt 0:00:30]} b5 {[%emt 0:00:30]} 33. Nf5 {[%emt 0:00:30]} Re8 {[%emt 0:00:10]} 34. Qd4 {[%emt 0:01:56]} Qf4+ {[%emt 0:00:17]} 35. Kb1 {[%emt 0:00:09]} Ne5 {[%emt 0:01:02]} 36. Qe3 {[%emt 0:04:24]} Qh2 {[%emt 0:00:30]} 37. Nd6 {[%emt 0:00:33]} Rd8 {[%emt 0:01:02]} 38. Nxf7 {[%emt 0:00:30]} Rxd1+ {[%emt 0:00:30]} 39. Bxd1 {[%emt 0:00:00]} Kxf7 {[%emt 0:00:00] [#]} 40. Bb3+ $1 {[%emt 0:00:09]} Kf6 {[%emt 0:00:32]} 41. Qd4 {[%emt 0:00:43]} (41. h4 $16) 41... Kg5 $1 {[%emt 0:00:35]} 42. Qd8+ {[%emt 0:05:25]} Kg6 {[%emt 0:00:01]} 43. Be6 {[%emt 0:01:08]} Qh1+ $18 {[%emt 0:00:57]} (43... Qe2 44. Qf8 (44. Bf5+ Kf7 $16) 44... Qxe4+ 45. Ka1 Kg5) 44. Ka2 {[%emt 0:00:06]} Qh2 {[%emt 0:00:31]} 45. Qe7 {[%emt 0:02:23]} 1-0